{"text_format":"2","workbook":"xlsx","n_sheets":2,"sheets":["Aufwandserstattung TSG","Tabellen"],"not_rendered":{"charts":0,"images":1,"macros":0,"external_links":0,"defined_names":2,"comments":0,"pivot_tables":0},"unopened":[],"bounds":{"document_bytes":16777216,"sheet_cells":100000,"run_cost":"one","rows_first":2000,"rows_last":500,"rows_between":2000,"halvings":0,"cell_chars":16384,"cell_head_chars":4096},"cells_cut":0,"cells_raw":0,"read":"whole","date_system":"1900"}

{"sheet":"Aufwandserstattung TSG","index":0,"n_rows":35,"n_cols":7,"rows_kept":35,"cut":false,"hidden":false,"merged":[[7,4,7,5],[33,0,33,1],[33,4,33,6],[2,4,2,5],[0,0,0,5]]}
["Übungsleiterabrechnung TSG Germania 1889 Dossenheim e.V., Am Sportplatz 5, 69221 Dossenheim"]
[]
["Name, Vorname:"," ",null,null,"Wird automatisch ausgefüllt!"]
["Anschrift:",null,null,null,"Abteilung:",{"$f":"IF(B8=1,\"\",INDEX(Tabellen!A4:A19,B8))","v":""}]
["IBAN:",null,null,null,"Buchungstext:",{"$f":"B3","v":" "}]
["Bank:",null,null,null,"Buchungskonto:","60040/3"]
["Steuer-Nr. (wenn vorhanden)",null,null,null,"Steuer:","nein"]
["Abteilung",1]
["Abrechnungsmonat:",1]
[]
["Datum","Gruppe","Anzahl Teilnehmer","Uhrzeit (von bis)","Anz. gegebener Stunden","Vergütung pro Stunde","Summe"]
[{"$nulls":6},{"$f":"E12*F12","v":0}]
[{"$nulls":6},0]
[{"$nulls":6},0]
[{"$nulls":6},0]
[{"$nulls":6},0]
[{"$nulls":6},0]
[{"$nulls":6},0]
[{"$nulls":6},0]
[{"$nulls":6},0]
[{"$nulls":6},0]
[{"$nulls":6},0]
[{"$nulls":6},0]
[{"$nulls":6},0]
[{"$nulls":6},0]
[{"$nulls":6},0]
[{"$nulls":6},0]
[{"$nulls":6},0]
[{"$nulls":6},0]
[{"$nulls":6},0]
[{"$nulls":6},0]
[null,"Gesamtsumme:",null,null,{"$f":"SUM(E12:E31)","v":0},null,{"$f":"SUM(G12:G31)","v":0}]
[]
[]
["Ort, Datum, Unterschrift",null,null,null,"Ort, Datum, Unterschrift Abteilungsleiter/Kassenwart"]

{"sheet":"Tabellen","index":1,"n_rows":19,"n_cols":2,"rows_kept":19,"cut":false,"hidden":false,"merged":[]}
[]
[]
[]
["Abteilung auswählen!","Monat auswählen!"]
["5001 Verein","Januar"]
["5015 Turnen","Februar"]
["5020 Leichtathletik","März"]
["5025 Handball","April"]
["5035 Kegeln","Mai"]
["5040 Tennis","Juni"]
["5045 Schwimmen","Juli"]
["5050 Badminton","August"]
["5055 Wandern","September"]
["5060 MTB","Oktober"]
["5070 Kispo","November"]
["5080 Reha Sport","Dezember"]
["5085 Karate"]
["5095 Flitz"]
["5090 Fitness&Gesundheit"]